fUST/lending_fUST_20241225
["ID","MTS","AMOUNT","RATE_DAILY","PERIOD"]
[346575779,1735109378291,-600.46,0.00012272,2]
[346575780,1735109378313,-693.47,0.00012272,2]
[346575781,1735109378335,-2049.61,0.00012272,2]
[346575782,1735109378358,-500.0,0.00012272,2]
[346575783,1735109378381,-500.0,0.00012272,2]
[346575784,1735109378403,-1277.32,0.00012272,2]
[346575785,1735109378426,-583.67,0.00012272,2]
[346575786,1735109378447,-500.0,0.00012272,2]
[346575787,1735109378471,-500.0,0.00012272,2]
[346575788,1735109378492,-957.72,0.00012272,2]
[346575789,1735109378516,-193.872958,0.00012272,2]
[346575790,1735109378539,-193.872958,0.00012272,2]
[346575791,1735109378560,-500.0,0.00012272,2]
[346575792,1735109378583,-500.0,0.00012272,2]
[346575793,1735109378606,-638.23,0.00012272,2]
[346575794,1735109378630,-500.0,0.00012272,2]
[346575795,1735109378652,-548.02,0.00012272,2]
[346575796,1735109378674,-500.0,0.00012272,2]
[346575797,1735109378710,-1221.87,0.00012272,2]
[346575798,1735109378733,-2389.95,0.00012272,2]
[346575799,1735109378754,-500.0,0.00012272,2]
[346575800,1735109378776,-500.0,0.00012272,2]
[346575801,1735109378798,-35839.84,0.00012272,2]
[346575802,1735109378821,-500.0,0.00012272,2]
[346575803,1735109378843,-674.6,0.00012272,2]
[346575804,1735109378864,-1152.17,0.00012272,2]
[346575805,1735109378887,-500.0,0.00012272,2]
[346575806,1735109378909,-500.0,0.00012272,2]
[346575807,1735109378931,-684.93,0.00012272,2]
[346575808,1735109378952,-1518.75,0.00012272,2]
[346575809,1735109378973,-958.23,0.00012272,2]
[346575810,1735109378996,-151.0,0.00012272,2]
[346575811,1735109379020,-602.85566834,0.00012273,2]
[346575812,1735109379041,-207.034912,0.00012273,2]
[346575813,1735109379063,-500.0,0.00012273,2]
[346575814,1735109379085,-500.0,0.00012273,2]
[346575815,1735109379108,-500.0,0.00012273,4]
[346575816,1735109379130,-500.0,0.00012273,2]
[346575817,1735109379151,-537.97,0.00012273,2]
[346575818,1735109379173,-500.0,0.00012273,2]
[346575819,1735109379195,-500.0,0.00012273,2]
[346575820,1735109379217,-500.0,0.00012273,2]
[346575821,1735109379239,-700.43,0.00012273,2]
[346575822,1735109379262,-500.0,0.00012273,2]
[346575823,1735109379285,-1154.15,0.00012273,2]
[346575824,1735109379310,-500.0,0.00012273,2]
[346575825,1735109379331,-500.0,0.00012273,2]
[346575826,1735109379354,-589.3,0.00012273,2]
[346575827,1735109379377,-500.0,0.00012273,2]
[346575828,1735109379400,-500.0,0.00012273,2]
[346575829,1735109379422,-500.0,0.00012273,2]
[346575830,1735109379449,-500.0,0.00012273,2]
[346575831,1735109379471,-500.0,0.00012273,2]
[346575832,1735109379494,-542.24,0.00012273,2]
[346575833,1735109379516,-500.0,0.00012273,2]
[346575834,1735109379538,-500.0,0.00012273,2]
[346575835,1735109379562,-500.0,0.00012273,2]
[346575836,1735109379585,-8431.73,0.00012273,2]
[346575837,1735109379608,-758.04,0.00012273,2]
[346575838,1735109379631,-500.0,0.00012273,2]
[346575839,1735109379652,-500.0,0.00012273,2]
[346575840,1735109379674,-1154.64,0.00012273,2]
[346575841,1735109379701,-500.0,0.00012273,2]
[346575842,1735109379724,-500.0,0.00012273,2]
[346575843,1735109379747,-855.82,0.00012273,2]
[346575844,1735109379769,-500.0,0.00012273,2]
[346575845,1735109379792,-1103.38,0.00012273,2]
[346575846,1735109379815,-880.94,0.00012273,2]
[346575847,1735109379837,-690.62,0.00012273,2]
[346575848,1735109379860,-500.0,0.00012273,2]
[346575849,1735109379883,-500.0,0.00012273,2]
[346575850,1735109379907,-500.0,0.00012273,2]
[346575851,1735109379929,-500.0,0.00012273,2]
[346575852,1735109379951,-500.0,0.00012379,2]
[346575853,1735109380180,-512.72483571,0.000124,2]
[346575854,1735109380204,-398.732,0.0001249,2]
[346575855,1735109380226,-500.0,0.00012545,2]
[346575856,1735109380248,-1707.9,0.00012545,2]
[346575857,1735109380271,-500.0,0.00012545,2]
[346575858,1735109380298,-500.0,0.00012545,2]
[346575859,1735109380321,-1061.25,0.00012545,2]
[346575860,1735109380344,-500.0,0.00012545,2]
[346575861,1735109380366,-500.0,0.00012545,2]
[346575862,1735109380394,-500.0,0.00012545,2]
[346575863,1735109380416,-500.0,0.00012545,2]
[346575864,1735109380438,-8429.62,0.00012545,2]
[346575865,1735109380460,-500.0,0.00012545,2]
[346575866,1735109380483,-500.0,0.00012545,2]
[346575867,1735109380504,-500.0,0.00012545,2]
[346575868,1735109380527,-3517.45,0.00012545,2]
[346575869,1735109380549,-500.0,0.00012546,2]
[346575870,1735109380572,-572.58,0.00012546,2]
[346575871,1735109380593,-500.0,0.00012546,2]
[346575872,1735109380615,-500.0,0.00012546,2]
[346575873,1735109380637,-500.0,0.00012546,2]
[346575874,1735109380659,-620.01,0.00012546,2]
[346575875,1735109380680,-1938.39,0.00012546,2]
[346575876,1735109380702,-1824.54,0.00012546,2]
[346575877,1735109380723,-1475.77,0.00012546,2]
[346575878,1735109380744,-1319.85,0.00012546,2]
[346575879,1735109380765,-500.0,0.00012546,2]
[346575880,1735109380787,-168.0,0.00012546,2]
[346575881,1735109380808,-500.0,0.00012546,2]
[346575882,1735109380830,-500.0,0.00012546,2]
[346575883,1735109380852,-535.5,0.00012546,2]
[346575884,1735109380874,-943.84,0.00012546,2]
[346575885,1735109380897,-593.66,0.00012546,2]
[346575886,1735109380920,-3168.82,0.00012546,2]
[346575887,1735109380945,-988.53,0.00012546,2]
[346575888,1735109380968,-978.78,0.00012546,2]
[346575889,1735109380990,-530.32,0.00012546,2]
[346575890,1735109381014,-644.74,0.00012546,2]
[346575891,1735109381038,-500.0,0.00012546,2]
[346575892,1735109381060,-500.0,0.00012546,2]
[346575893,1735109381084,-1867.05,0.00012546,2]
[346575894,1735109381108,-748.14,0.00012546,2]
[346575895,1735109381132,-500.0,0.00012546,2]
[346575896,1735109381156,-600.46,0.00012546,2]
[346575897,1735109381178,-693.47,0.00012546,2]
[346575898,1735109381200,-2049.61,0.00012546,2]
[346575899,1735109381222,-500.0,0.00012546,2]
[346575900,1735109381244,-500.0,0.00012546,2]
[346575901,1735109381267,-1277.32,0.00012546,2]
[346575902,1735109381289,-583.67,0.00012546,2]
[346575903,1735109381311,-500.0,0.00012546,2]
[346575904,1735109381332,-500.0,0.00012546,2]
[346575905,1735109381355,-957.72,0.00012546,2]
[346575906,1735109381377,-500.0,0.00012546,2]
[346575907,1735109381398,-500.0,0.00012546,2]
[346575908,1735109381421,-638.23,0.00012546,2]
[346575909,1735109381443,-500.0,0.00012546,2]
[346575910,1735109381466,-548.02,0.00012546,2]
[346575911,1735109381488,-500.0,0.00012546,2]
[346575912,1735109381510,-1221.87,0.00012546,2]
[346575913,1735109381533,-2389.95,0.00012546,2]
[346575914,1735109381555,-500.0,0.00012546,2]
[346575915,1735109381578,-500.0,0.00012546,2]
[346575916,1735109381600,-3755.67926237,0.00012546,2]
[346575917,1735109382111,-151.0,0.00011451,2]
[346575918,1735109382136,-151.0,0.00011723,2]
[346575919,1735109382159,-245.096528,0.00011724,2]
[346575920,1735109382586,507.77664109,0.0001145,2]
[346575921,1735109384265,360.9130691,0.0001145,2]
[346575922,1735109385314,500.0,0.0001145,2]
[346575923,1735109385568,500.0,0.00011724,2]
[346575924,1735109385832,500.0,0.00011998,2]
[346575925,1735109386107,500.0,0.00012272,2]
[346575926,1735109388788,500.0,0.0001145,2]
[346575927,1735109389034,500.0,0.00011724,2]
[346575928,1735109389272,500.0,0.00011998,2]
[346575929,1735109389524,500.0,0.00012272,2]
[346575930,1735109389623,500.0,0.00011449,2]
[346575931,1735109389887,500.0,0.00011723,2]
[346575932,1735109390189,500.0,0.00011997,2]
[346575933,1735109390638,500.0,0.00012271,2]
[346575934,1735109396055,500.0,0.0001145,2]
[346575935,1735109396350,500.0,0.00011724,2]
[346575936,1735109396603,500.0,0.00011998,2]
[346575937,1735109396817,583.69,0.0001145,2]
[346575938,1735109396963,500.0,0.00012272,2]
[346575939,1735109397064,583.69,0.00011724,2]
[346575940,1735109397352,583.69,0.00011998,2]
[346575941,1735109397612,583.69,0.00012272,2]
[346575942,1735109397941,500.0,0.0001145,2]
[346575943,1735109398212,500.0,0.00011724,2]
[346575944,1735109398485,500.0,0.00011998,2]
[346575945,1735109398747,500.0,0.00012272,2]
[346575946,1735109401513,503.63630944,0.00011451,2]
[346575947,1735109401711,500.0,0.00011451,2]
[346575948,1735109401980,500.0,0.00011725,2]
[346575949,1735109402277,500.0,0.00011999,2]
[346575950,1735109402533,500.0,0.00012273,2]
[346575951,1735109404500,500.0,0.00011451,2]
[346575952,1735109404799,8944.13,0.0001145,2]
[346575953,1735109404837,500.0,0.0001145,2]
[346575954,1735109405061,8944.13,0.00011724,2]
[346575955,1735109405102,500.0,0.00011724,2]
[346575956,1735109405359,8944.13,0.00011998,2]
[346575957,1735109405392,500.0,0.00011998,2]
[346575958,1735109405422,500.0,0.00011725,2]
[346575959,1735109405506,1352.09,0.00011449,2]
[346575960,1735109405609,8944.13,0.00012272,2]
[346575961,1735109405675,500.0,0.00011999,2]
[346575962,1735109405707,500.0,0.00012272,2]
[346575963,1735109405782,1352.09,0.00011723,2]
[346575964,1735109405921,500.0,0.00012273,2]
[346575965,1735109406046,1352.09,0.00011997,2]
[346575966,1735109406401,319.07007237,0.00012271,2]
[346575967,1735109406429,1033.01992763,0.00012271,2]
[346575968,1735109410617,500.0,0.00011451,2]
[346575969,1735109410907,1622.61,0.00011449,2]
[346575970,1735109410953,500.0,0.00011725,2]
[346575971,1735109411224,1622.61,0.00011723,2]
[346575972,1735109411252,500.0,0.00011999,2]
[346575973,1735109411490,1622.61,0.00011997,2]
[346575974,1735109411549,500.0,0.00012273,2]
[346575975,1735109411755,2508.65,0.00011449,2]
[346575976,1735109411782,1622.61,0.00012271,2]
[346575977,1735109412024,2466.43374724,0.00011723,2]
[346576038,1735109432789,-500.0,0.00011449,2]
[346576040,1735109432798,-317.80198008,0.00011449,2]
[346576551,1735109438568,-500.0,0.00011448,2]
[346576552,1735109438578,-182.19801992,0.00011449,2]
[346576553,1735109438589,-330.40198008,0.00011449,2]
[346576554,1735109438664,-680.80801992,0.00011449,2]
[346576555,1735109438676,-840.16,0.00011449,2]
[346576556,1735109438686,-596.76,0.00011449,2]
[346576557,1735109438696,-500.0,0.00011449,2]
[346576558,1735109438706,-500.0,0.0001145,2]
[346576559,1735109438715,-782.58,0.0001145,2]
[346576560,1735109438725,-640.37095344,0.00011451,2]
[346576561,1735109438734,-500.0,0.00011451,2]
[346576562,1735109438743,-500.0,0.00011451,2]
[346576563,1735109438752,-684.02,0.00011451,2]
[346576564,1735109438762,-302.72498913,0.00011451,2]
[346576565,1735109438771,-500.0,0.00011722,2]
[346576566,1735109438780,-42.21625276,0.00011723,2]
[346576567,1735109438789,-500.0,0.00011723,2]
[346576568,1735109438799,-500.0,0.00011723,2]
[346576569,1735109438808,-1011.21,0.00011723,2]
[346576570,1735109438818,-840.16,0.00011723,2]
[346576571,1735109438827,-596.76,0.00011723,2]
[346576572,1735109438836,-500.0,0.00011723,2]
[346576573,1735109438846,-500.17744206,0.00011724,2]
[346576574,1735109438855,-782.58,0.00011724,2]
[346576575,1735109438864,-500.0,0.00011725,2]
[346576576,1735109438874,-500.0,0.00011725,2]
[346576577,1735109438883,-684.02,0.00011725,2]
[346576578,1735109438893,-500.0,0.00011996,2]
[346576579,1735109438902,-2508.65,0.00011997,2]
[346576580,1735109438912,-500.0,0.00011997,2]
[346576581,1735109438922,-500.0,0.00011997,2]
[346576582,1735109438931,-1011.21,0.00011997,2]
[346576583,1735109438941,-840.16,0.00011997,2]
[346576584,1735109438950,-596.76,0.00011997,2]
[346576585,1735109438959,-500.0,0.00011997,2]
[346576586,1735109438969,-782.58,0.00011998,2]
[346576587,1735109438979,-500.0,0.00011999,2]
[346576588,1735109438988,-684.02,0.00011999,2]
[346576589,1735109438998,-500.0,0.0001227,2]
[346576590,1735109439007,-2508.65,0.00012271,2]
[346576591,1735109439016,-500.0,0.00012271,2]
[346576592,1735109439026,-500.0,0.00012271,2]
[346576593,1735109439035,-1011.21,0.00012271,2]
[346576594,1735109439044,-840.16,0.00012271,2]
[346576595,1735109439054,-596.76,0.00012271,2]
[346576596,1735109439063,-500.0,0.00012271,2]
[346576597,1735109439072,-782.58,0.00012272,2]
[346576598,1735109439082,-500.0,0.00012273,2]
[346576599,1735109439092,-684.02,0.00012273,2]
[346576600,1735109439101,-500.0,0.00012544,2]
[346576601,1735109439111,-500.0,0.00012545,2]
[346576602,1735109439120,-300.0,0.00012545,2]
[346576603,1735109439130,-300.0,0.00012545,2]
[346576604,1735109439139,-1352.09,0.00012545,2]
[346576605,1735109439149,-1622.61,0.00012545,2]
[346576606,1735109439158,-2508.65,0.00012545,2]
[346576607,1735109439167,-500.0,0.00012545,2]
[346576608,1735109439177,-500.0,0.00012545,2]
[346576609,1735109439331,-1011.21,0.00012545,2]
[346576610,1735109439341,-840.16,0.00012545,2]
[346576611,1735109439351,-596.76,0.00012545,2]
[346576612,1735109439360,-500.0,0.00012545,2]
[346576613,1735109439370,-8156.77338571,0.00012546,2]
[346576614,1735109440492,-346.0,0.0001145,2]
[346576678,1735109443470,-1419.09380447,0.00011449,2]
[346578157,1735110009582,285.93552835,9.938e-05,2]
[346578158,1735110025608,285.93552835,9.938e-05,2]
[346578159,1735110041150,285.93552835,9.938e-05,2]
[346578160,1735110055766,175.2597046,9.938e-05,2]
[346578161,1735110092060,285.93552835,9.938e-05,2]
[346578162,1735110430122,-282.52984349,0.00010344,2]
[346578163,1735110430145,-5128.4243751,0.00010448,2]
[346578164,1735110430166,-4361.8752741,0.00010959,2]
[346578165,1735110430187,-300.0,0.00011344,2]
[346578166,1735110430211,-300.0,0.00011344,2]
[346578167,1735110430232,-842.91706992,0.00011349,2]
[346578168,1735110430253,-500.0,0.00011446,2]
[346578169,1735110430273,-500.0,0.00011446,2]
[346578170,1735110430294,-333.15768163,0.00011446,2]
[346578171,1735110436095,-166.84231837,0.00011446,2]
[346578172,1735110436117,-1616.07,0.00011446,2]
[346578173,1735110436138,-500.0,0.00011446,2]
[346578174,1735110436159,-500.0,0.00011446,2]
[346578175,1735110436181,-1036.58,0.00011446,2]
[346578176,1735110436202,-500.0,0.00011446,2]
[346578177,1735110436224,-500.0,0.00011446,2]
[346578178,1735110436245,-500.0,0.00011446,2]
[346578179,1735110436266,-348.11452924,0.00011446,2]
[346578180,1735110436288,-500.0,0.00011446,2]
[346578181,1735110436311,-500.0,0.00011446,2]
[346578182,1735110436334,-500.0,0.00011446,2]
[346578183,1735110436357,-500.0,0.00011446,2]
[346578184,1735110436378,-500.0,0.00011446,2]
[346578185,1735110436400,-500.0,0.00011446,2]
[346578186,1735110436421,-533.87164362,0.00011446,2]
[346578187,1735110436443,-500.0,0.00011446,2]
[346578188,1735110436466,-500.0,0.00011446,2]
[346578189,1735110436488,-500.0,0.00011446,2]
[346578190,1735110436511,-500.0,0.00011446,2]
[346578191,1735110436532,-500.0,0.00011446,2]
[346578192,1735110436554,-500.0,0.00011446,2]
[346578193,1735110436576,-500.0,0.00011446,2]
[346578194,1735110436598,-500.0,0.00011446,2]
[346578195,1735110436619,-500.0,0.00011446,2]
[346578196,1735110436641,-500.0,0.00011446,2]
[346578197,1735110436664,-500.0,0.00011446,2]
[346578198,1735110436686,-500.0,0.00011446,2]
[346578199,1735110436708,-500.0,0.00011446,2]
[346578200,1735110436731,-500.0,0.00011446,2]
[346578201,1735110436754,-500.0,0.00011446,2]
[346578202,1735110436776,-500.0,0.00011446,2]
[346578203,1735110436800,-500.0,0.00011446,2]
[346578204,1735110436824,-500.0,0.00011446,2]
[346578205,1735110436846,-500.0,0.00011446,2]
[346578206,1735110436868,-500.0,0.00011446,2]
[346578207,1735110436891,-500.0,0.00011446,2]
[346578208,1735110436917,-500.0,0.00011446,2]
[346578209,1735110436941,-55.49852734,0.00011446,2]
[346578211,1735110449095,-250.0,0.0001045,2]
[346578212,1735110449120,-500.0,0.00011446,2]
[346578213,1735110449146,-444.50147266,0.00011446,2]
[346578214,1735110449171,-500.0,0.00011446,2]
[346578215,1735110449196,-500.0,0.00011446,2]
[346578216,1735110449221,-500.0,0.00011446,2]
[346578217,1735110449247,-194.62174163,0.00011446,2]
[346578218,1735110449272,-500.0,0.00011446,2]
[346578219,1735110449296,-500.0,0.00011446,2]
[346578220,1735110449322,-500.0,0.00011446,2]
[346578221,1735110449346,-500.0,0.00011446,2]
[346578222,1735110449373,-500.0,0.00011446,2]
[346578223,1735110449398,-500.0,0.00011446,2]
[346578224,1735110449424,-500.0,0.00011446,2]
[346578225,1735110449448,-500.0,0.00011446,2]
[346578226,1735110449472,-500.0,0.00011446,2]
[346578227,1735110449497,-500.0,0.00011446,2]
[346578228,1735110449523,-500.0,0.00011446,2]
[346578229,1735110449547,-500.0,0.00011446,2]
[346578230,1735110449571,-500.0,0.00011446,2]
[346578231,1735110449596,-500.0,0.00011446,2]
[346578232,1735110449622,-500.0,0.00011446,2]
[346578233,1735110449648,-500.0,0.00011446,2]
[346578234,1735110449674,-500.0,0.00011446,2]
[346578235,1735110449699,-500.0,0.00011446,2]
[346578236,1735110449723,-500.0,0.00011446,2]
[346578237,1735110449748,-500.0,0.00011446,2]
[346578238,1735110449772,-500.0,0.00011446,2]
[346578239,1735110449796,-500.0,0.00011446,2]
[346578240,1735110449821,-500.0,0.00011446,2]
[346578241,1735110449846,-500.0,0.00011446,2]
[346578242,1735110449874,-500.0,0.00011446,2]
[346578243,1735110449898,-157.57458015,0.00011446,2]
[346578244,1735110449924,-500.0,0.00011446,2]
[346578245,1735110449952,-500.0,0.00011446,2]
[346578246,1735110449979,-350.0,0.00011446,2]
[346578247,1735110450004,-500.0,0.00011446,2]
[346578248,1735110450031,-500.0,0.00011446,2]
[346578249,1735110450057,-500.0,0.00011446,2]
[346578250,1735110450082,-500.0,0.00011446,2]
[346578251,1735110450108,-500.0,0.00011446,2]
[346578252,1735110450133,-500.0,0.00011446,2]
[346578253,1735110450157,-500.0,0.00011447,2]
[346578254,1735110450180,-500.0,0.00011447,2]
[346578255,1735110450203,-500.0,0.00011447,2]
[346578256,1735110450227,-500.0,0.00011447,2]
[346578257,1735110450250,-500.0,0.00011447,2]
[346578258,1735110450273,-500.0,0.00011447,2]
[346578259,1735110450296,-501.66379496,0.00011447,2]
[346578260,1735110450327,-500.0,0.00011447,2]
[346578261,1735110450350,-502.27938855,0.00011447,2]
[346578262,1735110450372,-500.0,0.00011447,2]
[346578263,1735110450396,-500.0,0.00011447,2]
[346578264,1735110450419,-501.52216722,0.00011447,2]
[346578265,1735110450442,-534.8,0.00011447,2]
[346578266,1735110450467,-503.83985086,0.00011447,2]
[346578267,1735110450493,-500.0,0.00011447,2]
[346578268,1735110450518,-500.0,0.00011447,2]
[346578269,1735110450544,-500.0,0.00011447,2]
[346578270,1735110450569,-500.0,0.00011447,2]
[346578271,1735110450594,-501.83248865,0.00011447,2]
[346578272,1735110450617,-501.83827515,0.00011447,2]
[346578273,1735110450640,-500.0,0.00011447,2]
[346578274,1735110450664,-503.49312441,0.00011447,2]
[346578275,1735110450687,-500.0,0.00011447,2]
[346578276,1735110450711,-500.0,0.00011447,2]
[346578277,1735110450736,-501.48357344,0.00011447,2]
[346578278,1735110450760,-500.0,0.00011447,2]
[346578279,1735110450783,-502.07812151,0.00011447,2]
[346578280,1735110450805,-501.36137115,0.00011447,2]
[346578281,1735110450828,-558.34878525,0.00011447,2]
[346578282,1735110450852,-500.0,0.00011447,2]
[346578283,1735110450876,-500.0,0.00011447,2]
[346578284,1735110450898,-520.69301283,0.00011447,2]
[346578285,1735110450921,-500.0,0.00011447,2]
[346578286,1735110450945,-500.0,0.00011447,2]
[346578287,1735110450967,-500.0,0.00011447,2]
[346578288,1735110450990,-500.0,0.00011447,2]
[346578289,1735110451024,-608.28,0.00011447,2]
[346578290,1735110451065,-500.0,0.00011447,2]
[346578291,1735110451105,-500.0,0.00011447,2]
[346578292,1735110451127,-500.0,0.00011447,2]
[346578293,1735110451151,-500.0,0.00011447,2]
[346578294,1735110451173,-500.0,0.00011447,2]
[346578295,1735110451195,-500.0,0.00011447,2]
[346578296,1735110451219,-500.0,0.00011447,2]
[346578297,1735110451245,-494.54908773,0.00011447,2]
[346578298,1735110451268,-1093.6,0.00011447,2]
[346578299,1735110451290,-500.0,0.00011447,2]
[346578300,1735110451315,-500.0,0.00011447,2]
[346578301,1735110451337,-500.0,0.00011447,2]
[346578302,1735110451363,-500.0,0.00011447,2]
[346578303,1735110451384,-500.0,0.00011447,2]
[346578304,1735110451407,-500.0,0.00011447,2]
[346578305,1735110451428,-500.0,0.00011447,2]
[346578306,1735110451449,-500.0,0.00011447,2]
[346578307,1735110451470,-500.0,0.00011447,2]
[346578308,1735110451494,-8878.61,0.00011447,2]
[346578309,1735110451515,-500.0,0.00011447,2]
[346578310,1735110451536,-500.0,0.00011447,2]
[346578311,1735110451557,-500.0,0.00011447,2]
[346578312,1735110451722,-168.0,0.00011447,2]
[346578313,1735110451746,-500.0,0.00011447,2]
[346578314,1735110451768,-500.0,0.00011447,2]
[346578315,1735110451790,-501.14219141,0.00011447,2]
[346578316,1735110451812,-2931.45,0.00011447,2]
[346578317,1735110451834,-500.0,0.00011447,2]
[346578318,1735110451856,-822.22,0.00011447,2]
[346578319,1735110451878,-500.0,0.00011447,2]
[346578320,1735110451900,-500.0,0.00011447,2]
[346578321,1735110451922,-500.0,0.00011447,2]
[346578322,1735110451949,-511.85,0.00011447,2]
[346578323,1735110451971,-500.0,0.00011447,2]
[346578324,1735110451996,-500.0,0.00011447,2]
[346578325,1735110452020,-500.0,0.00011447,2]
[346578326,1735110452043,-500.0,0.00011447,2]
[346578327,1735110452068,-2437.2,0.00011447,2]
[346578328,1735110452091,-500.0,0.00011447,2]
[346578329,1735110452114,-500.0,0.00011447,2]
[346578330,1735110452136,-500.0,0.00011447,2]
[346578331,1735110452158,-500.0,0.00011447,2]
[346578332,1735110452181,-500.0,0.00011447,2]
[346578333,1735110452202,-500.0,0.00011447,2]
[346578334,1735110452226,-500.0,0.00011447,2]
[346578335,1735110452248,-500.0,0.00011447,2]
[346578336,1735110452270,-1463.67,0.00011447,2]
[346578337,1735110452294,-500.0,0.00011447,2]
[346578338,1735110452316,-644.91194497,0.00011447,2]
[346578339,1735110452339,-573.66739059,0.00011447,2]
[346578340,1735110452363,-500.0,0.00011447,2]
[346578341,1735110452385,-500.0,0.00011447,2]
[346578342,1735110452414,-500.0,0.00011447,2]
[346578343,1735110452437,-500.0,0.00011447,2]
[346578344,1735110452460,-500.0,0.00011447,2]
[346578345,1735110452483,-500.90371166,0.00011447,2]
[346578346,1735110452506,-774.99,0.00011447,2]
[346578347,1735110452530,-950.76,0.00011447,2]
[346578348,1735110452552,-500.0,0.00011447,2]
[346578349,1735110452576,-500.0,0.00011447,2]
[346578350,1735110452599,-576.29,0.00011447,2]
[346578351,1735110452621,-500.0,0.00011447,2]
[346578352,1735110452643,-500.0,0.00011447,2]
[346578353,1735110452665,-504.44969084,0.00011447,2]
[346578354,1735110452690,-500.41316086,0.00011447,2]
[346578355,1735110452711,-501.17921644,0.00011447,2]
[346578356,1735110452733,-500.51047012,0.00011447,2]
[346578357,1735110452755,-500.0,0.00011447,2]
[346578358,1735110452777,-500.72807361,0.00011447,2]
[346578359,1735110452800,-862.27,0.00011447,2]
[346578360,1735110452822,-500.0,0.00011447,2]
[346578361,1735110452845,-500.0,0.00011447,2]
[346578362,1735110452868,-500.0,0.00011447,2]
[346578363,1735110452891,-601.38,0.00011448,2]
[346578364,1735110452913,-657.18,0.00011448,2]
[346578365,1735110452940,-500.0,0.00011448,2]
[346578366,1735110452969,-500.0,0.00011448,2]
[346578367,1735110452994,-613.07,0.00011448,2]
[346578368,1735110453016,-500.0,0.00011448,2]
[346578369,1735110453042,-500.0,0.00011448,2]
[346578370,1735110453066,-500.0,0.00011448,2]
[346578371,1735110453090,-500.0,0.00011448,2]
[346578372,1735110453114,-625.82,0.00011448,2]
[346578373,1735110453137,-879.73,0.00011448,2]
[346578374,1735110453161,-500.0,0.00011448,2]
[346578375,1735110453185,-500.0,0.00011448,2]
[346578376,1735110453207,-500.0,0.00011448,2]
[346578377,1735110453231,-566.63,0.00011448,2]
[346578378,1735110453252,-500.0,0.00011448,2]
[346578379,1735110453274,-500.0,0.00011448,2]
[346578380,1735110453297,-500.0,0.00011448,2]
[346578381,1735110453321,-500.0,0.00011448,2]
[346578382,1735110453344,-500.0,0.00011448,2]
[346578383,1735110453368,-567.28,0.00011448,2]
[346578384,1735110453391,-500.0,0.00011448,2]
[346578385,1735110453414,-500.0,0.00011448,2]
[346578386,1735110453437,-500.0,0.00011448,2]
[346578387,1735110453462,-500.0,0.00011448,2]
[346578388,1735110453494,-500.0,0.00011448,2]
[346578389,1735110453525,-500.0,0.00011448,2]
[346578390,1735110453552,-500.0,0.00011448,2]
[346578391,1735110453581,-509.90282238,0.00011448,2]